bitfinex-derivatives/quotes_SOLF0:USTF0_20250328
["timestamp","ask_amount","ask_price","bid_price","bid_amount"]
[1743121597314,13.21241522,137.76,137.74,0.05242753]
[1743121597510,38.71241522,137.76,137.74,0.05242753]
[1743121597707,7.2615,137.75,137.74,0.05242753]
[1743121601426,45.97361522,137.76,137.74,0.05242753]
[1743121601617,38.71241522,137.76,137.74,0.05242753]
[1743121602127,45.97361522,137.76,137.74,0.05242753]
[1743121602624,7.2615,137.75,137.74,0.05242753]
[1743121619840,20.47351522,137.76,137.74,0.05242753]
[1743121621142,7.2615,137.75,137.74,0.05242753]
[1743121621451,20.47391522,137.75,137.74,0.05242753]
[1743121623451,7.2631,137.72,137.68,13.21241522]
[1743121623656,13.21241522,137.72,137.68,13.21241522]
[1743121624151,20.47581522,137.72,137.68,13.21241522]
[1743121624547,20.47581522,137.72,137.69,0.04844877]
[1743121624745,0.05037796,137.71,137.69,0.04844877]
[1743121627050,7.31417796,137.71,137.69,0.04844877]
[1743121627651,7.2641,137.7,137.69,0.04844877]
[1743121630747,20.47651522,137.7,137.69,0.04844877]
[1743121634155,7.2641,137.7,137.69,0.04844877]
[1743121634357,13.21241522,137.7,137.69,0.04844877]
[1743121635752,20.47651522,137.7,137.69,0.04844877]
[1743121639555,7.2658,137.67,137.63,1.9898]
[1743121639751,13.21241522,137.67,137.63,1.9898]
[1743121639955,13.21241522,137.65,137.59,13.21241522]
[1743121640158,7.2676,137.64,137.59,13.21241522]
[1743121640347,13.21241522,137.65,137.59,13.21241522]
[1743121640758,0.04592526,137.63,137.61,0.05347542]
[1743121641060,0.04592526,137.63,137.61,7.32207542]
[1743121641360,0.04592526,137.63,137.61,0.05347542]
[1743121641564,0.04592526,137.63,137.61,7.32197542]
[1743121641856,25.94,137.66,137.61,13.26589064]
[1743121642256,25.94,137.66,137.65,7.2668]
[1743121642555,13.21241522,137.68,137.65,7.2668]
[1743121643261,13.21241522,137.66,137.65,0.04737219]
[1743121643564,13.21241522,137.66,137.65,7.31417219]
[1743121644256,13.21241522,137.66,137.65,0.04737219]
[1743121645359,13.21241522,137.66,137.65,7.31417219]
[1743121646162,13.21241522,137.66,137.65,0.04737219]
[1743121650067,20.47871522,137.66,137.65,0.04737219]
[1743121652369,39.19241522,137.66,137.61,7.2686]
[1743121652573,13.21241522,137.64,137.61,7.2686]
[1743121653072,20.48001522,137.64,137.61,7.2686]
[1743121653263,13.21241522,137.62,137.51,14.5481]
[1743121653461,20.48081522,137.62,137.61,0.04789057]
[1743121653661,13.21241522,137.62,137.59,7.2694]
[1743121653861,13.21241522,137.62,137.6,0.05044125]
[1743121654061,20.48081522,137.62,137.6,0.05044125]
[1743121655377,7.2689,137.61,137.6,0.05044125]
[1743121655767,13.21241522,137.62,137.6,0.05044125]
[1743121655969,20.48101522,137.62,137.6,0.05044125]
[1743121656876,13.21241522,137.62,137.6,0.05044125]
[1743121657470,20.48101522,137.62,137.6,0.05044125]
[1743121657873,13.21241522,137.62,137.6,0.05044125]
[1743121658173,13.21241522,137.62,137.6,7.31964125]
[1743121658573,13.21241522,137.62,137.61,7.2689]
[1743121658877,26.0553098,137.63,137.6,0.05044125]
[1743121659071,0.0553098,137.63,137.62,7.2684]
[1743121664271,0.0553098,137.63,137.61,7.2688]
[1743121664471,0.0553098,137.63,137.6,13.26285647]
[1743121664672,0.0553098,137.63,137.61,7.2686]
[1743121664972,0.0553098,137.63,137.6,13.26285647]
[1743121665173,0.0553098,137.63,137.61,7.2686]
[1743121665782,7.3232098,137.63,137.6,20.53205647]
[1743121665978,0.0553098,137.63,137.6,0.05044125]
[1743121666175,13.21241522,137.62,137.6,0.05044125]
[1743121666376,13.21241522,137.62,137.56,7.2715]
[1743121666377,7.2703,137.59,137.56,7.2715]
[1743121666576,13.21241522,137.59,137.53,13.21241522]
[1743121667085,7.2707,137.58,137.55,7.2718]
[1743121667582,7.31909861,137.58,137.55,7.32736446]
[1743121667789,7.2711,137.57,137.55,7.32736446]
[1743121668186,13.21241522,137.57,137.55,0.05556446]
[1743121668392,13.21241522,137.57,137.5,13.21241522]
[1743121668988,7.2721,137.55,137.52,7.2733]
[1743121669188,13.21241522,137.57,137.52,7.2733]
[1743121669388,0.04745814,137.56,137.53,0.04998838]
[1743121669789,0.04745814,137.56,137.54,7.2722]
[1743121670188,0.04745814,137.56,137.53,0.04998838]
[1743121670894,0.04745814,137.56,137.55,7.2721]
[1743121671486,0.04745814,137.56,137.53,0.04998838]
[1743121671890,0.04745814,137.56,137.54,7.2722]
[1743121672794,0.04745814,137.56,137.55,7.2721]
[1743121672995,0.04745814,137.56,137.53,0.04998838]
[1743121673189,0.04745814,137.56,137.54,7.2723]
[1743121673391,0.04745814,137.56,137.53,0.04998838]
[1743121673995,13.25987336,137.56,137.53,0.04998838]
[1743121675696,13.21241522,137.54,137.42,1.26547755]
[1743121675890,13.21241522,137.54,137.46,1.911]
[1743121676088,13.21241522,137.55,137.48,13.21241522]
[1743121676291,13.21241522,137.55,137.5,7.2747]
[1743121676997,0.05435963,137.54,137.51,0.05447206]
[1743121678899,13.21241522,137.53,137.51,0.05447206]
[1743121679498,20.48561522,137.53,137.51,0.05447206]
[1743121679797,13.21241522,137.53,137.51,0.05447206]
[1743121680590,0.05435963,137.54,137.51,0.05447206]
[1743121681802,7.32725963,137.54,137.51,0.05447206]
[1743121682409,0.05435963,137.54,137.51,0.05447206]
[1743121682704,0.05435963,137.54,137.52,7.2737]
[1743121682900,0.05435963,137.54,137.51,0.05447206]
[1743121683100,0.05435963,137.54,137.51,7.32847206]
[1743121683602,0.05435963,137.54,137.47,7.276]
[1743121683603,13.21241522,137.52,137.47,7.276]
[1743121683802,13.21241522,137.49,137.44,1.9606]
[1743121684203,13.21241522,137.49,137.46,7.2765]
[1743121684901,13.258696,137.49,137.46,7.32491493]
[1743121685505,13.258696,137.49,137.46,0.04841493]
[1743121686509,0.04628078,137.49,137.46,0.04841493]
[1743121687409,0.04628078,137.49,137.47,7.2762]
[1743121687703,0.04628078,137.49,137.46,0.04841493]
[1743121687909,0.04628078,137.49,137.48,7.2758]
[1743121689107,0.04628078,137.49,137.47,7.2762]
[1743121690709,0.04628078,137.49,137.48,7.2758]
[1743121694709,0.04628078,137.49,137.47,7.2761]
[1743121694912,0.04628078,137.49,137.46,0.04841493]
[1743121695509,0.04628078,137.49,137.47,7.2763]
[1743121695908,0.04628078,137.49,137.46,0.04841493]
[1743121697012,0.04628078,137.49,137.48,7.2758]
[1743121701813,261.78,137.62,137.48,7.28]
[1743121702014,13.21241522,137.56,137.5,13.21241522]
[1743121702215,13.21241522,137.56,137.5,39.77241522]
[1743121702415,13.21241522,137.56,137.54,7.2723]
[1743121703113,13.26594332,137.56,137.54,7.32748238]
[1743121703309,0.0535281,137.56,137.55,7.2721]
[1743121713425,41.85851522,137.62,137.54,13.2675976]
[1743121713621,41.85851522,137.62,137.57,13.21241522]
[1743121714126,15.29851522,137.62,137.57,13.21241522]
[1743121714419,0.0542597,137.61,137.58,0.05237779]
[1743121714825,0.0542597,137.61,137.59,7.27]
[1743121715233,0.0542597,137.61,137.58,0.05237779]
[1743121715419,13.21241522,137.6,137.58,0.05237779]
[1743121715622,13.21241522,137.6,137.56,7.2713]
[1743121716020,13.21241522,137.58,137.53,39.65241522]
[1743121716319,13.21241522,137.58,137.53,26.44]
[1743121716527,13.21241522,137.56,137.51,13.21241522]
[1743121716718,13.21241522,137.56,137.51,39.63241522]
[1743121716924,0.05587186,137.55,137.52,0.04725328]
[1743121717222,0.05587186,137.55,137.53,7.2728]
[1743121717623,0.05587186,137.55,137.52,0.04725328]
[1743121717826,0.05587186,137.55,137.52,7.32035328]
[1743121718126,0.05587186,137.55,137.52,0.04725328]
[1743121718318,0.05587186,137.55,137.53,7.273]
[1743121720327,0.05587186,137.55,137.52,7.32075328]
[1743121720628,7.32797186,137.55,137.52,7.32075328]
[1743121721926,7.2726,137.54,137.52,0.04725328]
[1743121722534,7.32817186,137.55,137.52,7.32075328]
[1743121723031,13.21241522,137.53,137.45,14.01724763]
[1743121723218,13.21241522,137.49,137.44,13.21241522]
[1743121723530,13.21241522,137.49,137.44,39.55241522]
[1743121723729,13.21241522,137.49,137.46,7.2765]
[1743121723931,13.21241522,137.49,137.44,39.55241522]
[1743121724327,0.04604018,137.48,137.47,7.2763]
[1743121737143,0.04604018,137.48,137.45,7.32388343]
[1743121737439,0.04604018,137.48,137.45,0.04668343]
[1743121737831,0.04604018,137.48,137.45,26.26668343]
[1743121738642,0.04604018,137.48,137.47,7.2763]
[1743121738939,4.018e-05,137.48,137.47,7.2763]
[1743121739144,7.2713,137.57,137.53,7.2728]
[1743121739742,7.2713,137.57,137.5,26.2]
[1743121740241,0.05430789,137.55,137.54,7.2726]
[1743121740947,0.05430789,137.55,137.52,0.04874028]
[1743121741445,7.32640789,137.55,137.52,7.32184028]
[1743121741639,0.05430789,137.55,137.52,0.04874028]
[1743121742046,0.05430789,137.55,137.53,7.273]
[1743121745351,0.05430789,137.55,137.52,0.04874028]
[1743121746049,0.05430789,137.55,137.52,7.32194028]
[1743121746349,0.05430789,137.55,137.52,0.04874028]
[1743121746646,7.2727,137.54,137.52,0.04874028]
[1743121746949,7.32660789,137.55,137.52,0.04874028]
[1743121747551,7.2727,137.54,137.52,0.04874028]
[1743121747753,0.05430789,137.55,137.52,0.04874028]
[1743121748248,7.32650789,137.55,137.52,0.04874028]
[1743121748748,7.2727,137.54,137.52,0.04874028]
[1743121749145,0.05430789,137.55,137.52,0.04874028]
[1743121749345,13.28840376,137.54,137.46,39.36840376]
[1743121749544,13.28840376,137.51,137.46,39.36840376]
[1743121749943,7.275,137.5,137.46,20.56480376]
[1743121750447,7.275,137.5,137.47,0.05134918]
[1743121750649,0.0473764,137.49,137.47,0.05134918]
[1743121750852,0.0473764,137.49,137.47,7.32764918]
[1743121751253,0.0473764,137.49,137.47,0.05134918]
[1743121751449,7.2758,137.48,137.47,0.05134918]
[1743121754856,7.2758,137.48,137.42,13.28840376]
[1743121754857,15.40708016,137.49,137.41,26.08]
[1743121755058,13.28840376,137.46,137.42,7.2789]
[1743121755453,20.56550376,137.46,137.42,7.2789]
[1743121755855,0.05574711,137.45,137.43,0.04061718]
[1743121756058,0.05574711,137.45,137.44,13.28840376]
[1743121756458,0.05574711,137.45,137.44,20.56630376]
[1743121756964,0.05574711,137.45,137.43,0.04061718]
[1743121757162,0.05574711,137.45,137.43,7.31871718]
[1743121758866,0.05574711,137.45,137.43,0.04061718]
[1743121760759,7.33314711,137.45,137.43,0.04061718]
[1743121760965,0.05574711,137.45,137.43,0.04061718]
[1743121763061,0.05574711,137.45,137.43,7.31901718]
[1743121764259,0.05574711,137.45,137.43,0.04061718]
[1743121767066,7.33314711,137.45,137.43,0.04061718]
[1743121768467,0.05574711,137.45,137.43,0.04061718]
[1743121770366,0.05574711,137.45,137.43,7.31901718]
[1743121770563,0.05574711,137.45,137.43,0.04061718]
[1743121770965,0.05574711,137.45,137.43,7.31891718]
[1743121771869,0.05574711,137.45,137.43,0.04061718]
[1743121772374,13.34415087,137.45,137.43,0.04061718]
[1743121774570,20.62195087,137.45,137.43,0.04061718]
[1743121775280,7.2779,137.44,137.43,0.04061718]
[1743121776266,7.2779,137.44,137.38,25.96]
[1743121776463,13.28840376,137.42,137.4,7.2797]
[1743121777370,13.34272472,137.42,137.4,7.2797]
[1743121777771,13.34272472,137.42,137.41,7.2795]
[1743121778167,13.34272472,137.42,137.3,261.9]
[1743121778474,13.34272472,137.42,137.39,7.2802]
[1743121778475,13.28840376,137.42,137.39,7.2802]
[1743121778676,13.34050185,137.42,137.37,25.94]
[1743121779581,13.28840376,137.41,137.39,7.2803]
[1743121781082,13.28840376,137.41,137.4,7.28]
[1743121783582,13.28840376,137.41,137.39,7.2803]
[1743121785782,13.28840376,137.41,137.4,7.28]
[1743121787882,13.28840376,137.41,137.37,25.92]
[1743121787883,13.28840376,137.41,137.39,7.2803]
[1743121788879,13.28840376,137.41,137.4,7.28]
[1743121789081,13.28840376,137.41,137.36,39.16840376]
[1743121789887,13.28840376,137.41,137.39,7.2801]
[1743121792789,13.28840376,137.41,137.4,7.28]
[1743121796992,0.05209809,137.42,137.41,7.2795]
[1743121797183,0.05209809,137.42,137.41,20.56790376]
[1743121800397,13.28840376,137.47,137.41,13.28840376]
[1743121800593,13.28840376,137.48,137.43,13.28840376]
[1743121800898,13.28840376,137.49,137.43,39.10840376]
[1743121801595,0.05202286,137.47,137.46,7.2768]
[1743121808205,39.14042662,137.47,137.45,0.04904713]
[1743121808506,20.56520376,137.46,137.45,0.04904713]
[1743121809092,7.2779,137.44,137.39,13.28840376]
[1743121809401,20.56630376,137.44,137.39,13.28840376]
[1743121810203,20.56630376,137.44,137.4,7.2797]
[1743121810409,7.33271235,137.43,137.39,13.28840376]
[1743121811810,7.33271235,137.43,137.4,7.2797]
[1743121812611,0.05421235,137.43,137.4,7.2797]
[1743121813813,7.33271235,137.43,137.4,7.2797]
[1743121814208,0.05421235,137.43,137.41,7.2795]
[1743121816116,7.33271235,137.43,137.4,7.28]
[1743121816313,0.05421235,137.43,137.4,7.28]
[1743121816817,13.28840376,137.42,137.4,7.28]
[1743121817012,13.28840376,137.42,137.41,7.2795]
[1743121817614,20.56760376,137.42,137.36,2.0915]
[1743121817810,0.05421235,137.43,137.34,13.28840376]
[1743121818010,25.82,137.41,137.34,13.28840376]
[1743121818213,0.05494809,137.4,137.34,13.28840376]
[1743121818417,13.34335185,137.4,137.34,13.28840376]
[1743121819215,7.2806,137.39,137.36,7.2819]
[1743121819519,7.2806,137.39,137.34,13.28840376]
[1743121819719,7.2819,137.37,137.33,34.56497479]
[1743121820117,0.04731038,137.36,137.33,27.28157479]
[1743121820316,20.61791414,137.36,137.33,1.26157479]
[1743121820516,13.33571414,137.36,137.33,1.26157479]
[1743121820723,13.33571414,137.36,137.34,7.2831]
[1743121821121,13.33571414,137.36,137.33,1.26157479]
[1743121821321,13.33571414,137.36,137.33,8.54497479]
[1743121822225,13.33571414,137.36,137.34,7.2832]
[1743121822423,13.33571414,137.36,137.33,1.26157479]
[1743121823419,13.33571414,137.36,137.34,7.2828]
[1743121825822,13.33571414,137.36,137.35,7.2827]
[1743121826524,13.33571414,137.36,137.34,7.283]
[1743121826726,13.28840376,137.35,137.33,1.26157479]
[1743121827119,13.28840376,137.35,137.33,8.54497479]
[1743121827327,13.28840376,137.35,137.33,1.26157479]
[1743121828627,20.57110376,137.35,137.33,1.26157479]
[1743121828828,13.28840376,137.35,137.33,1.26157479]
[1743121829233,39.22840376,137.35,137.33,1.26157479]
[1743121829832,20.57160376,137.34,137.33,1.26157479]
[1743121830223,13.28840376,137.34,137.28,0.98927417]
[1743121830423,13.28840376,137.29,137.28,0.98927417]
[1743121831823,39.20840376,137.29,137.24,1.0250456]
[1743121832026,13.28840376,137.25,137.17,80.54000721]
[1743121832238,13.28840376,137.23,137.17,80.54000721]
[1743121832528,13.28840376,137.23,137.18,13.28840376]
[1743121832728,13.34191589,137.23,137.18,13.28840376]
[1743121832929,13.34191589,137.23,137.21,7.2898]
[1743121833129,13.34191589,137.23,137.18,39.18840376]
[1743121833531,13.34191589,137.23,137.22,7.2896]
[1743121833830,0.05351213,137.23,137.22,20.57800376]
[1743121834134,364.0,137.31,137.25,7.2878]
[1743121834135,39.18840376,137.29,137.25,7.2878]
[1743121834319,39.18840376,137.29,137.24,13.28840376]
[1743121834723,39.18840376,137.29,137.26,7.2871]
[1743121835232,39.23668348,137.29,137.26,7.34213104]
[1743121835428,39.23668348,137.29,137.27,7.2865]
[1743121835929,0.04827972,137.29,137.28,13.28840376]
[1743121836232,25.92,137.33,137.28,13.28840376]
[1743121836433,13.28840376,137.34,137.3,13.28840376]
[1743121837220,275.32840376,137.36,137.3,13.28840376]
[1743121837423,0.04625263,137.33,137.32,13.28840376]
[1743121837624,17.40540376,137.41,137.32,39.22840376]
[1743121837927,17.40540376,137.41,137.37,7.2813]
[1743121838129,17.40540376,137.41,137.35,39.24840376]
[1743121838431,13.28840376,137.41,137.35,39.24840376]
[1743121838829,40.09686493,137.42,137.4,7.28]
[1743121839025,40.09686493,137.42,137.37,0.04933447]
[1743121839331,20.80412171,137.41,137.37,0.04933447]
[1743121840725,7.2804,137.4,137.37,0.04933447]
[1743121841435,20.80412171,137.41,137.37,0.04933447]
[1743121841730,0.0544117,137.42,137.37,0.04933447]
[1743121842236,0.0544117,137.42,137.38,46.88412171]
[1743121842435,0.0544117,137.42,137.4,7.2797]
[1743121843237,0.0544117,137.42,137.39,7.2804]
[1743121844232,0.0544117,137.42,137.41,7.2795]
[1743121846434,0.0544117,137.42,137.4,0.05412337]
[1743121849235,0.0544117,137.42,137.41,7.2795]
[1743121849431,0.0544117,137.42,137.4,0.05412337]
[1743121850438,0.0544117,137.42,137.4,26.11412337]
[1743121850834,0.0544117,137.42,137.4,33.39382337]
[1743121851439,0.0544117,137.42,137.41,7.2795]
[1743121853736,0.0544117,137.42,137.4,7.33392337]
[1743121853936,0.0544117,137.42,137.4,0.05412337]
[1743121854339,0.0544117,137.42,137.41,7.2795]
[1743121855543,0.0544117,137.42,137.4,7.33402337]
[1743121857234,0.0544117,137.42,137.41,7.2795]
[1743121859146,11.2178,137.5,137.46,7.2764]
[1743121859344,2.0177,137.5,137.43,26.06]
[1743121859845,2.0177,137.5,137.48,7.2757]
[1743121860038,26.06,137.51,137.43,26.06]
[1743121860241,24.84872171,137.54,137.46,20.80412171]
[1743121860444,1.9381,137.54,137.47,26.08]
[1743121860643,46.88412171,137.56,137.47,26.08]
[1743121860838,7.2724,137.55,137.47,26.08]
[1743121861032,46.88412171,137.56,137.47,26.08]
[1743121861240,20.80412171,137.52,137.47,26.08]
[1743121861442,46.92412171,137.52,137.44,30.0491]
[1743121861743,7.2747,137.5,137.48,0.0528395]
[1743121862834,0.04782259,137.51,137.48,0.0528395]
[1743121864047,0.04782259,137.51,137.48,20.85696121]
[1743121864247,0.04782259,137.51,137.5,7.2747]
[1743121864544,24.67152171,137.58,137.5,7.2747]
[1743121864747,7.2719,137.56,137.5,7.2747]
[1743121865750,0.05501396,137.54,137.52,0.04922841]
[1743121866846,26.1,137.6,137.52,20.85335012]
[1743121867044,26.1,137.6,137.52,46.90412171]
[1743121867238,46.90412171,137.6,137.52,26.1]
[1743121868041,0.05552958,137.57,137.55,0.05197331]
[1743121868444,7.2715,137.56,137.55,0.05197331]
[1743121871649,20.80412171,137.56,137.47,26.08]
[1743121871845,2.0019,137.55,137.47,26.08]
[1743121872338,7.2733,137.53,137.49,7.2749]
[1743121872542,0.04944646,137.52,137.47,26.08]
[1743121872740,0.04944646,137.52,137.5,0.04775426]
[1743121872940,0.04944646,137.52,137.5,7.32215426]
[1743121874755,0.04944646,137.52,137.51,7.2742]
[1743121875050,26.06,137.6,137.5,46.91187597]
[1743121875256,7.2705,137.58,137.54,7.2726]
[1743121876051,0.0556558,137.57,137.55,0.04684582]
[1743121876558,0.0556558,137.57,137.55,7.31884582]
[1743121878350,0.0556558,137.57,137.55,0.04684582]
[1743121879753,7.2715,137.56,137.55,0.04684582]
[1743121881947,7.2724,137.55,137.5,26.08]
[1743121882147,20.80412171,137.57,137.5,26.08]
[1743121882757,7.2723,137.55,137.52,7.2735]
[1743121883054,0.04758264,137.55,137.52,0.04654242]
[1743121883257,0.04758264,137.55,137.54,7.2726]
[1743121886153,0.04758264,137.55,137.53,33.3729]
[1743121886661,0.04758264,137.55,137.53,26.1]
[1743121886960,0.04758264,137.55,137.54,7.2726]
[1743121892061,2617.14,138.17,137.57,7.2706]
[1743121892267,50.74852171,137.64,137.54,20.80412171]
[1743121892456,20.80412171,137.62,137.53,26.1]
[1743121892656,26.1,137.61,137.55,7.2721]
[1743121892962,26.1,137.61,137.53,26.1]
[1743121893352,0.04708425,137.58,137.56,0.0546747]
[1743121893557,26.12,137.58,137.5,20.80412171]
[1743121893756,26.17434517,137.58,137.56,0.05295554]
[1743121893957,26.17434517,137.58,137.53,7.2728]
[1743121894158,26.17434517,137.58,137.5,46.92412171]
[1743121894460,26.17434517,137.58,137.54,0.05440834]
[1743121894668,33.44504517,137.58,137.55,7.2719]
[1743121894967,26.17434517,137.58,137.55,7.2719]
[1743121895769,7.2713,137.57,137.54,0.05440834]
[1743121896463,33.44504517,137.58,137.55,7.2718]
[1743121896666,26.17434517,137.58,137.55,7.2718]
[1743121897068,7.2713,137.57,137.54,7.32670834]
[1743121897566,7.2718,137.56,137.54,0.05440834]
[1743121898770,7.2712,137.57,137.54,0.05440834]
[1743121899360,7.2712,137.57,137.54,7.32680834]
[1743121899962,26.17434517,137.58,137.54,0.05440834]
[1743121900567,7.2721,137.55,137.54,0.05440834]
[1743121902960,26.08,137.55,137.48,26.08]
[1743121903365,26.08,137.55,137.49,7.275]
[1743121903573,7.2739,137.52,137.49,7.275]
[1743121904178,0.05265147,137.52,137.5,7.2746]
[1743121904473,0.05265147,137.52,137.49,0.04671301]
[1743121904674,0.05265147,137.52,137.5,7.2745]
[1743121905665,0.05265147,137.52,137.49,0.04671301]
[1743121906163,7.32655147,137.52,137.49,7.32171301]
[1743121906669,0.05265147,137.52,137.49,7.32171301]
[1743121906875,0.05265147,137.52,137.49,0.04671301]
[1743121907377,0.05265147,137.52,137.5,20.80412171]
[1743121907870,0.05265147,137.52,137.51,7.2742]
[1743121912070,0.05265147,137.52,137.51,33.3142]
[1743121915469,4.0664,137.61,137.51,26.04]
[1743121915670,30.0864,137.61,137.53,20.80412171]
[1743121915869,30.0864,137.61,137.54,26.02]
[1743121916069,7.2703,137.59,137.54,26.02]
[1743121916575,0.05529099,137.58,137.55,7.32185696]
[1743121916766,7.32589099,137.58,137.55,7.32185696]
[1743121917172,0.05529099,137.58,137.56,7.2715]
[1743121917475,0.05529099,137.58,137.55,0.05015696]
[1743121918473,0.05529099,137.58,137.56,7.2713]
[1743121920878,0.05529099,137.58,137.56,20.55191952]
[1743121922278,0.05529099,137.58,137.55,0.05015696]
[1743121923184,7.2713,137.57,137.55,0.05015696]
[1743121924281,7.2715,137.56,137.55,0.05015696]
[1743121924687,0.05529099,137.58,137.55,0.05015696]
[1743121924981,0.05529099,137.58,137.56,7.2713]
[1743121926282,7.32609099,137.58,137.55,20.60267648]
[1743121926679,0.05529099,137.58,137.55,0.05015696]
[1743121926877,7.2715,137.56,137.55,0.05015696]
[1743121928271,7.2712,137.57,137.55,0.05015696]
[1743121928584,0.05529099,137.58,137.55,0.05015696]
[1743121930586,7.2715,137.56,137.55,0.05015696]
[1743121931479,33.2515,137.56,137.55,0.05015696]
[1743121932679,25.98,137.56,137.55,0.05015696]
[1743121933577,33.2515,137.56,137.55,0.05015696]
[1743121937481,25.98,137.56,137.55,0.05015696]
[1743121937685,26.01529099,137.58,137.55,0.05015696]
[1743121938294,0.05529099,137.58,137.55,0.05015696]
[1743121938494,0.05529099,137.58,137.56,7.2715]
[1743121938690,0.05529099,137.58,137.55,0.05015696]
[1743121939092,0.05529099,137.58,137.56,7.2711]
[1743121940191,0.05529099,137.58,137.57,7.271]
[1743121940397,66.05686493,137.63,137.56,20.76089484]
[1743121941085,25.96,137.63,137.56,20.76089484]
[1743121941285,69.91986493,137.65,137.55,25.96]
[1743121941590,0.05162412,137.61,137.58,20.81184787]
[1743121941789,0.05162412,137.61,137.6,7.2694]
[1743121943194,40.09686493,137.65,137.61,7.2687]
[1743121943894,40.09686493,137.65,137.62,7.2681]
[1743121944092,7.2659,137.67,137.62,7.2681]
[1743121944297,0.05155774,137.65,137.62,7.31837369]
[1743121944495,0.05155774,137.65,137.62,0.05027369]
[1743121945496,0.05155774,137.65,137.62,7.31827369]
[1743121946196,0.05155774,137.65,137.63,7.2678]
[1743121946401,0.05155774,137.65,137.62,20.81116853]
[1743121946598,0.05155774,137.65,137.62,46.77116853]
[1743121946796,7.2643,137.7,137.64,20.76089484]
[1743121947105,29.919,137.73,137.66,20.76089484]
[1743121947403,29.919,137.73,137.68,7.2647]
[1743121947404,33.2428,137.73,137.68,7.2647]
[1743121947797,25.98,137.73,137.66,46.74089484]
[1743121947995,0.05024867,137.72,137.69,0.0534133]
[1743121948397,7.2639,137.71,137.69,0.0534133]
[1743121949298,0.05024867,137.72,137.69,0.0534133]
[1743121949299,7.2641,137.7,137.69,0.0534133]
[1743121950002,46.72089484,137.71,137.64,25.96]
[1743121950198,50.80539484,137.71,137.61,25.98]
[1743121950603,7.2667,137.66,137.62,7.2683]
[1743121951203,0.04869899,137.65,137.63,0.05054863]
[1743121951404,7.2659,137.67,137.63,0.05054863]
[1743121951600,0.05339605,137.65,137.63,0.05054863]
[1743121951797,7.2643,137.7,137.63,0.05054863]
[1743121952004,0.04663578,137.65,137.63,2.14654863]
[1743121952299,7.2651,137.69,137.64,33.2473]
[1743121952704,0.04656813,137.68,137.64,25.98]
[1743121953207,0.04656813,137.68,137.65,0.04827806]
[1743121954201,0.04656813,137.68,137.65,7.31497806]
[1743121954604,0.04656813,137.68,137.65,0.04827806]
[1743121954905,20.76089484,137.75,137.66,20.76089484]
[1743121955101,25.98,137.74,137.66,20.76089484]
[1743121955297,25.98,137.74,137.67,25.98]
[1743121955498,7.2629,137.73,137.69,7.2643]
[1743121955908,25.98,137.74,137.67,25.98]
[1743121956095,7.2637,137.71,137.7,0.05105384]
[1743121956301,0.0493522,137.72,137.7,0.05105384]
[1743121957398,0.0493522,137.72,137.7,7.31515384]
[1743121957602,0.0493522,137.72,137.7,0.05105384]
[1743121958005,0.0493522,137.72,137.71,7.2636]
[1743121958402,0.0493522,137.72,137.7,0.05105384]
[1743121958603,0.0493522,137.72,137.7,7.31495384]
[1743121959101,0.0493522,137.72,137.7,0.05105384]
[1743121959606,7.2636,137.71,137.7,0.05105384]
[1743121965408,28.02089484,137.71,137.56,1.26414443]
[1743121965604,20.76089484,137.65,137.55,46.84089484]
[1743121965803,20.76089484,137.63,137.55,26.08]
[1743121966318,26.08,137.62,137.55,26.08]
[1743121966521,0.05445864,137.6,137.58,0.05385475]
[1743121966709,7.2701,137.59,137.58,0.05385475]
[1743121967716,7.32405864,137.6,137.58,0.05385475]
[1743121968016,0.05445864,137.6,137.58,0.05385475]
[1743121968609,7.27,137.59,137.58,0.05385475]
[1743121969920,7.32415864,137.6,137.58,0.05385475]
[1743121970117,0.05445864,137.6,137.58,0.05385475]
[1743121973022,0.05445864,137.6,137.45,261.48]
[1743121973023,46.84089484,137.59,137.45,261.48]
[1743121973221,20.76089484,137.56,137.47,26.08]
[1743121973419,46.84089484,137.56,137.51,7.2738]
[1743121974119,46.84089484,137.56,137.52,0.05566806]
[1743121974326,0.04822898,137.55,137.52,0.05566806]
[1743121974924,20.76089484,137.54,137.46,3.9157]
[1743121975116,20.76089484,137.5,137.43,26.16]
[1743121975618,26.18,137.49,137.41,1.9339]
[1743121975823,20.76089484,137.48,137.41,1.9339]
[1743121976123,0.05196244,137.46,137.44,0.05008039]
[1743121977026,0.05196244,137.46,137.45,7.2774]
[1743121983728,26.54,137.5,137.49,7.2752]
[1743121984123,2.067,137.52,137.44,20.76089484]